[Event "African Games-chT 2019"]
[Site "Casablanca"]
[Date "2019.08.24"]
[Round "5.15"]
[White "Caxita, Esperanca"]
[Black "Mwango, Lorita"]
[Result "1-0"]
[ECO "B13"]
[WhiteElo "1803"]
[BlackElo "1947"]
[Annotator "NA"]
[PlyCount "120"]
[EventDate "2019.08.24"]
[EventType "team-tourn"]
[EventCountry "MAR"]
[SourceTitle "playchess.com"]
[Source "ChessBase"]
[SourceQuality "1"]
[WhiteTeam "Angola"]
[BlackTeam "Zambia"]
[WhiteTeamCountry "ANG"]
[BlackTeamCountry "ZAM"]
[TimeControl "900+10"]

1. e4 {[%emt 0:00:00]} c6 {[%emt 0:00:00]} 2. d4 {[%emt 0:00:00]} d5 {[%emt 0:00:00]} 3. exd5 {[%emt 0:00:00]} cxd5 {[%emt 0:00:00]} 4. Bd3 {[%emt 0:00:06]} Nf6 {[%emt 0:00:04]} 5. Nf3 {[%emt 0:00:12]} Bg4 {[%emt 0:00:08]} 6. c3 {[%emt 0:00:14]} Nbd7 {[%emt 0:00:24]} 7. Nbd2 {[%emt 0:00:05]} e6 {[%emt 0:00:08]} 8. Qb3 {[%emt 0:01:19]} Qb6 {[%emt 0:01:15]} 9. Qc2 {[%emt 0:00:29]} Rc8 {[%emt 0:01:01]} 10. O-O {[%emt 0:00:54]} Be7 {[%emt 0:00:29]} 11. Re1 {[%emt 0:00:16]} O-O {[%emt 0:00:12]} 12. h3 {[%emt 0:01:02]} Bh5 {[%emt 0:00:09]} 13. Ne5 {[%emt 0:00:22]} Bg6 {[%emt 0:02:30]} 14. Ndf3 {[%emt 0:01:58]} Nxe5 {[%emt 0:01:26]} 15. Nxe5 {[%emt 0:00:13]} Bxd3 {[%emt 0:00:08]} 16. Qxd3 {[%emt 0:00:01]} Ne4 {[%emt 0:00:41]} 17. Nd7 {[%emt 0:00:11]} Qc7 {[%emt 0:00:27]} 18. Nxf8 {[%emt 0:00:05]} Bxf8 {[%emt 0:00:10]} 19. f3 {[%emt 0:01:11]} Qg3 {[%emt 0:00:28]} 20. Be3 {[%emt 0:00:56]} Nf6 {[%emt 0:01:20]} 21. Bf2 {[%emt 0:00:29]} Qg5 {[%emt 0:00:54]} 22. Re5 {[%emt 0:00:52]} Qg6 {[%emt 0:00:11]} 23. Qxg6 {[%emt 0:00:31]} hxg6 {[%emt 0:00:02]} 24. Re2 {[%emt 0:00:21]} Bd6 {[%emt 0:00:07]} 25. g3 {[%emt 0:00:31]} Rc6 {[%emt 0:00:52]} 26. Kg2 {[%emt 0:00:12]} Nd7 {[%emt 0:00:12]} 27. Rc1 {[%emt 0:00:17]} Nb6 {[%emt 0:00:12]} 28. b3 {[%emt 0:00:13]} Kf8 {[%emt 0:01:00]} 29. Rcc2 {[%emt 0:00:21]} Be7 {[%emt 0:00:25]} 30. g4 {[%emt 0:00:06]} Bf6 {[%emt 0:00:37]} 31. Bg3 {[%emt 0:00:03]} g5 {[%emt 0:00:31]} 32. Be5 {[%emt 0:00:31]} Bxe5 {[%emt 0:00:15]} 33. Rxe5 {[%emt 0:00:10]} f6 {[%emt 0:00:02]} 34. Re1 {[%emt 0:00:04]} Kf7 {[%emt 0:00:03]} 35. Kg3 {[%emt 0:00:02]} a6 {[%emt 0:00:14]} 36. f4 {[%emt 0:00:40]} gxf4+ {[%emt 0:00:07]} 37. Kxf4 {[%emt 0:00:01]} Rd6 {[%emt 0:00:07]} 38. g5 {[%emt 0:00:15]} Nd7 {[%emt 0:00:37]} 39. h4 {[%emt 0:00:30]} g6 {[%emt 0:00:42]} 40. gxf6 {[%emt 0:00:51]} Kxf6 {[%emt 0:00:09]} 41. Rf1 {[%emt 0:00:10]} e5+ {[%emt 0:00:32]} 42. dxe5+ {[%emt 0:00:39]} Nxe5 {[%emt 0:00:02]} 43. Re2 {[%emt 0:00:15]} Re6 {[%emt 0:00:21]} 44. Kg3+ {[%emt 0:01:09]} Ke7 {[%emt 0:00:17]} 45. Rd1 {[%emt 0:00:04]} Nd7 {[%emt 0:01:47]} 46. Rxe6+ {[%emt 0:00:09]} Kxe6 {[%emt 0:00:01]} 47. Kf4 {[%emt 0:00:02]} Nf6 {[%emt 0:00:20]} 48. Rd3 {[%emt 0:00:36]} Ne4 {[%emt 0:00:51]} 49. Re3 {[%emt 0:00:21]} Kf6 {[%emt 0:00:07]} 50. c4 {[%emt 0:00:18]} g5+ {[%emt 0:00:26]} 51. hxg5+ {[%emt 0:00:05]} Nxg5 {[%emt 0:00:01]} 52. cxd5 {[%emt 0:00:06]} Nf7 {[%emt 0:00:10]} 53. Re6+ {[%emt 0:00:05]} Kg7 {[%emt 0:00:01]} 54. Kf5 {[%emt 0:00:17]} Kf8 {[%emt 0:00:27]} 55. Rf6 {[%emt 0:00:57]} Ke7 {[%emt 0:00:03]} 56. Rxf7+ {[%emt 0:00:29]} Kxf7 {[%emt 0:00:02]} 57. Ke5 {[%emt 0:00:01]} Ke7 {[%emt 0:00:02]} 58. b4 {[%emt 0:00:06]} Kd7 {[%emt 0:00:17]} 59. d6 {[%emt 0:00:07]} Kd8 {[%emt 0:00:23]} 60. Kd5 {[%emt 0:00:13]} Kd7 1-0

[Event "African Games-chT 2019"]
[Site "Casablanca"]
[Date "2019.08.24"]
[Round "5.16"]
[White "Mululu Linah"]
[Black "Pires, Luzia"]
[Result "0-1"]
[ECO "D05"]
[WhiteElo "1633"]
[BlackElo "1924"]
[Annotator "NA"]
[PlyCount "70"]
[EventDate "2019.08.24"]
[EventType "team-tourn"]
[EventCountry "MAR"]
[SourceTitle "playchess.com"]
[Source "ChessBase"]
[SourceQuality "1"]
[WhiteTeam "Zambia"]
[BlackTeam "Angola"]
[WhiteTeamCountry "ZAM"]
[BlackTeamCountry "ANG"]
[TimeControl "900+10"]

1. d4 {[%emt 0:00:00]} d5 {[%emt 0:00:00]} 2. Nf3 {[%emt 0:00:00]} e6 {[%emt 0:00:00]} 3. e3 {[%emt 0:00:00]} Nf6 {[%emt 0:00:00]} 4. Nbd2 {[%emt 0:00:09]} Bd6 {[%emt 0:00:03]} 5. Bd3 {[%emt 0:00:01]} O-O {[%emt 0:00:03]} 6. O-O {[%emt 0:00:01]} c5 {[%emt 0:00:02]} 7. b3 {[%emt 0:00:08]} b6 {[%emt 0:00:03]} 8. Bb2 {[%emt 0:00:01]} h6 {[%emt 0:00:12]} 9. Ne5 {[%emt 0:00:05]} Bb7 {[%emt 0:00:07]} 10. f4 {[%emt 0:00:23]} Ne4 {[%emt 0:00:14]} 11. Ndf3 {[%emt 0:00:49]} f5 {[%emt 0:00:14]} 12. c4 {[%emt 0:00:28]} Nd7 {[%emt 0:00:10]} 13. Qe1 {[%emt 0:00:17]} Ndf6 {[%emt 0:00:09]} 14. Qh4 {[%emt 0:00:42]} Qe8 {[%emt 0:00:11]} 15. Nd7 {[%emt 0:03:00]} Qxd7 {[%emt 0:00:11]} 16. Rae1 {[%emt 0:00:24]} Qf7 {[%emt 0:00:02]} 17. Bxe4 {[%emt 0:00:31]} Nxe4 {[%emt 0:00:27]} 18. dxc5 {[%emt 0:00:38]} Nxc5 {[%emt 0:01:46]} 19. Rd1 {[%emt 0:01:09]} Be7 {[%emt 0:00:30]} 20. Qg3 {[%emt 0:00:03]} Ne4 {[%emt 0:00:35]} 21. Qe1 {[%emt 0:00:37]} dxc4 {[%emt 0:00:17]} 22. Rd7 {[%emt 0:01:32]} Bc6 {[%emt 0:00:26]} 23. Rc7 {[%emt 0:00:24]} Rac8 {[%emt 0:00:20]} 24. Ne5 {[%emt 0:00:46]} Qe8 {[%emt 0:00:05]} 25. Rxa7 {[%emt 0:00:36]} cxb3 {[%emt 0:00:07]} 26. axb3 {[%emt 0:00:17]} Bf6 {[%emt 0:02:55]} 27. Bd4 {[%emt 0:00:37]} Bxe5 {[%emt 0:01:04]} 28. Bxe5 {[%emt 0:00:11]} Rf7 {[%emt 0:00:08]} 29. Ra6 {[%emt 0:00:44]} Bb5 {[%emt 0:00:09]} 30. Rxb6 {[%emt 0:00:02]} Bxf1 {[%emt 0:00:04]} 31. Qxf1 {[%emt 0:00:01]} Qd7 {[%emt 0:01:11]} 32. h3 {[%emt 0:00:20]} Rc2 {[%emt 0:00:25]} 33. Rb8+ {[%emt 0:01:42]} Kh7 {[%emt 0:00:02]} 34. Qf3 {[%emt 0:00:34]} Qd2 {[%emt 0:00:23]} 35. Rb4 {[%emt 0:00:40]} Qxb4 {[%emt 0:00:14]} 0-1

[Event "African Games-chT 2019"]
[Site "Casablanca"]
[Date "2019.08.24"]
[Round "5.17"]
[White "Mwale, Joseph"]
[Black "Gohil, Mehul"]
[Result "1-0"]
[ECO "E06"]
[WhiteElo "2231"]
[BlackElo "2076"]
[Annotator "NA"]
[PlyCount "71"]
[EventDate "2019.08.24"]
[EventType "team-tourn"]
[EventCountry "MAR"]
[SourceTitle "playchess.com"]
[Source "ChessBase"]
[SourceQuality "1"]
[WhiteTeam "MAW"]
[BlackTeam "Kenya"]
[BlackTeamCountry "KEN"]
[TimeControl "900+10"]

1. d4 {[%emt 0:00:00]} d5 {[%emt 0:00:00]} 2. c4 {[%emt 0:00:00]} e6 {[%emt 0:00:00]} 3. g3 {[%emt 0:00:00]} Nf6 {[%emt 0:00:00]} 4. Bg2 {[%emt 0:00:00]} Be7 {[%emt 0:00:01]} 5. Nf3 {[%emt 0:00:00]} O-O {[%emt 0:00:02]} 6. O-O {[%emt 0:00:01]} dxc4 {[%emt 0:00:02]} 7. Qc2 {[%emt 0:00:03]} b6 {[%emt 0:00:02]} 8. Nbd2 {[%emt 0:00:34]} Bb7 {[%emt 0:00:07]} 9. Nxc4 {[%emt 0:00:02]} Nbd7 {[%emt 0:00:08]} 10. Rd1 {[%emt 0:00:24]} Qe8 {[%emt 0:01:00]} 11. Nce5 {[%emt 0:00:49]} c5 {[%emt 0:00:12]} 12. Nxd7 {[%emt 0:00:28]} Nxd7 {[%emt 0:00:11]} 13. Ng5 {[%emt 0:00:16]} Bxg5 {[%emt 0:00:15]} 14. Bxb7 {[%emt 0:00:03]} Rb8 {[%emt 0:00:10]} 15. Bc6 {[%emt 0:00:21]} Bxc1 {[%emt 0:02:04]} 16. dxc5 {[%emt 0:00:18]} Bg5 {[%emt 0:00:23]} 17. Bxd7 {[%emt 0:00:31]} Qd8 {[%emt 0:01:00]} 18. c6 {[%emt 0:00:15]} Qc7 {[%emt 0:00:20]} 19. b4 {[%emt 0:00:13]} b5 {[%emt 0:01:21]} 20. a4 {[%emt 0:00:18]} Be7 {[%emt 0:00:09]} 21. Qe4 {[%emt 0:00:41]} bxa4 {[%emt 0:01:37]} 22. Rxa4 {[%emt 0:00:05]} Rb5 {[%emt 0:00:05]} 23. Rda1 {[%emt 0:01:58]} Qd6 {[%emt 0:01:54]} 24. Rxa7 {[%emt 0:00:54]} Rxb4 {[%emt 0:00:18]} 25. Qc2 {[%emt 0:00:12]} Qc5 {[%emt 0:04:55]} 26. Qxc5 {[%emt 0:02:25]} Bxc5 {[%emt 0:00:02]} 27. R7a4 {[%emt 0:00:05]} Rxa4 {[%emt 0:02:17]} 28. Rxa4 Bd6 {[%emt 0:00:01]} 29. Ra7 {[%emt 0:00:07]} Bb8 {[%emt 0:00:06]} 30. Rb7 {[%emt 0:00:05]} Bd6 {[%emt 0:00:27]} 31. c7 {[%emt 0:00:06]} Bxc7 {[%emt 0:00:01]} 32. Rxc7 {[%emt 0:00:01]} g6 {[%emt 0:00:01]} 33. Rc8 {[%emt 0:00:01]} Kg7 {[%emt 0:00:06]} 34. Rxf8 {[%emt 0:00:02]} Kxf8 {[%emt 0:00:02]} 35. Kg2 {[%emt 0:00:01]} Ke7 {[%emt 0:00:01]} 36. Bb5 {[%emt 0:00:02]} 1-0

[Event "African Games-chT 2019"]
[Site "Casablanca"]
[Date "2019.08.24"]
[Round "5.18"]
[White "Sang, Ricky"]
[Black "Mphungu, Gerrard"]
[Result "0-1"]
[ECO "B90"]
[WhiteElo "1971"]
[BlackElo "2107"]
[Annotator "NA"]
[PlyCount "70"]
[EventDate "2019.08.24"]
[EventType "team-tourn"]
[EventCountry "MAR"]
[SourceTitle "playchess.com"]
[Source "ChessBase"]
[SourceQuality "1"]
[WhiteTeam "Kenya"]
[BlackTeam "MAW"]
[WhiteTeamCountry "KEN"]
[TimeControl "900+10"]

1. e4 {[%emt 0:00:00]} c5 {[%emt 0:00:00]} 2. Nf3 {[%emt 0:00:00]} d6 {[%emt 0:00:00]} 3. d4 {[%emt 0:00:00]} cxd4 {[%emt 0:00:00]} 4. Nxd4 {[%emt 0:00:00]} Nf6 {[%emt 0:00:00]} 5. Nc3 a6 6. Be3 {[%emt 0:00:17]} e5 {[%emt 0:00:06]} 7. Nb3 {[%emt 0:00:02]} Be6 {[%emt 0:00:03]} 8. f3 {[%emt 0:00:07]} Be7 {[%emt 0:00:04]} 9. Qd2 {[%emt 0:00:02]} Nbd7 {[%emt 0:00:06]} 10. O-O-O {[%emt 0:00:15]} b5 {[%emt 0:00:20]} 11. g4 {[%emt 0:00:26]} Nb6 {[%emt 0:03:14]} 12. g5 {[%emt 0:01:05]} Nh5 {[%emt 0:00:17]} 13. Bxb6 {[%emt 0:02:04]} Qxb6 {[%emt 0:00:01]} 14. h4 {[%emt 0:00:41]} O-O {[%emt 0:01:38]} 15. Nd5 {[%emt 0:01:29]} Bxd5 {[%emt 0:00:14]} 16. exd5 {[%emt 0:01:48]} g6 {[%emt 0:00:36]} 17. Kb1 {[%emt 0:00:15]} a5 {[%emt 0:01:37]} 18. Nc1 {[%emt 0:00:07]} f5 {[%emt 0:01:17]} 19. Ne2 {[%emt 0:01:46]} b4 {[%emt 0:01:46]} 20. f4 {[%emt 0:00:06]} Rfd8 {[%emt 0:03:00]} 21. Rh3 {[%emt 0:01:39]} Qf2 {[%emt 0:01:15]} 22. Rd3 {[%emt 0:01:58]} Qxh4 {[%emt 0:00:58]} 23. Qe3 {[%emt 0:01:07]} Nxf4 {[%emt 0:00:28]} 24. Nxf4 {[%emt 0:01:16]} Qxf4 {[%emt 0:00:02]} 25. Qh3 {[%emt 0:01:09]} e4 {[%emt 0:01:04]} 26. R3d2 {[%emt 0:00:14]} Bxg5 {[%emt 0:00:11]} 27. Rh2 {[%emt 0:00:05]} Ra7 {[%emt 0:00:18]} 28. Bb5 {[%emt 0:00:10]} Bf6 {[%emt 0:00:13]} 29. Rdh1 {[%emt 0:00:50]} Rb8 {[%emt 0:00:20]} 30. Bc6 {[%emt 0:00:42]} Qe5 {[%emt 0:00:03]} 31. Qb3 {[%emt 0:00:10]} a4 {[%emt 0:00:06]} 32. Bxa4 {[%emt 0:00:06]} Rxa4 {[%emt 0:00:21]} 33. Rxh7 {[%emt 0:00:04]} Ra3 {[%emt 0:00:25]} 34. Rg7+ {[%emt 0:00:29]} Bxg7 {[%emt 0:00:10]} 35. c4 {[%emt 0:00:08]} Rxb3 {[%emt 0:00:02]} 0-1

[Event "African Games-chT 2019"]
[Site "Casablanca"]
[Date "2019.08.24"]
[Round "5.19"]
[White "Nkhoma, Desiderata"]
[Black "Ndirangu, Joyce Nyaruai"]
[Result "1-0"]
[ECO "B27"]
[WhiteElo "1481"]
[BlackElo "1662"]
[Annotator "NA"]
[PlyCount "128"]
[EventDate "2019.08.24"]
[EventType "team-tourn"]
[EventCountry "MAR"]
[SourceTitle "playchess.com"]
[Source "ChessBase"]
[SourceQuality "1"]
[WhiteTeam "MAW"]
[BlackTeam "Kenya"]
[BlackTeamCountry "KEN"]
[TimeControl "900+10"]

1. e4 {[%emt 0:00:00]} c5 {[%emt 0:00:00]} 2. Nf3 {[%emt 0:00:00]} g6 {[%emt 0:00:00]} 3. d4 {[%emt 0:00:00]} cxd4 {[%emt 0:00:00]} 4. Nxd4 {[%emt 0:00:03]} Bg7 {[%emt 0:00:02]} 5. Be2 {[%emt 0:00:06]} d6 {[%emt 0:00:08]} 6. Nc3 {[%emt 0:00:15]} Nf6 {[%emt 0:00:02]} 7. O-O {[%emt 0:00:06]} Bd7 {[%emt 0:00:03]} 8. h3 {[%emt 0:00:06]} Nc6 {[%emt 0:00:03]} 9. Be3 {[%emt 0:00:12]} O-O {[%emt 0:00:16]} 10. Nxc6 {[%emt 0:00:28]} Bxc6 {[%emt 0:00:03]} 11. Bd3 {[%emt 0:00:04]} a6 {[%emt 0:00:37]} 12. Qd2 {[%emt 0:00:04]} b5 {[%emt 0:00:03]} 13. a3 {[%emt 0:00:20]} Qc7 {[%emt 0:00:30]} 14. Bh6 {[%emt 0:00:07]} Rac8 {[%emt 0:00:30]} 15. Bxg7 {[%emt 0:00:06]} Kxg7 {[%emt 0:00:02]} 16. Rfe1 {[%emt 0:01:17]} Qb7 {[%emt 0:01:05]} 17. Qf4 {[%emt 0:00:55]} Nd7 {[%emt 0:00:47]} 18. Re3 {[%emt 0:04:02]} Nc5 {[%emt 0:00:58]} 19. Rae1 {[%emt 0:02:03]} Ne6 {[%emt 0:02:03]} 20. Qg4 {[%emt 0:01:28]} a5 {[%emt 0:02:54]} 21. Ne2 {[%emt 0:00:29]} Nc5 {[%emt 0:00:37]} 22. Nf4 {[%emt 0:01:29]} Nxd3 {[%emt 0:00:48]} 23. cxd3 {[%emt 0:00:10]} Qd7 {[%emt 0:00:31]} 24. Qg3 {[%emt 0:00:44]} e5 {[%emt 0:00:39]} 25. Nh5+ {[%emt 0:00:58]} Kh8 {[%emt 0:01:42]} 26. Nf6 {[%emt 0:00:28]} Qd8 {[%emt 0:00:18]} 27. Rf3 {[%emt 0:01:38]} Kg7 {[%emt 0:00:38]} 28. Nh5+ {[%emt 0:00:25]} Kh6 {[%emt 0:01:55]} 29. Nf6 {[%emt 0:00:52]} Rh8 {[%emt 0:00:05]} 30. Qh4+ {[%emt 0:00:36]} Kg7 {[%emt 0:00:03]} 31. Qg4 {[%emt 0:00:28]} h5 {[%emt 0:00:21]} 32. Qg5 {[%emt 0:00:01]} Bd7 {[%emt 0:00:58]} 33. Kh2 {[%emt 0:00:13]} Be6 {[%emt 0:00:10]} 34. Kg1 {[%emt 0:00:11]} Bf5 {[%emt 0:01:17]} 35. exf5 {[%emt 0:00:10]} Qxf6 {[%emt 0:00:02]} 36. Qxf6+ {[%emt 0:00:10]} Kxf6 {[%emt 0:00:01]} 37. fxg6+ {[%emt 0:00:09]} Kxg6 {[%emt 0:00:02]} 38. Re2 {[%emt 0:00:07]} f5 {[%emt 0:00:07]} 39. Rd2 {[%emt 0:00:17]} h4 {[%emt 0:00:03]} 40. Re3 {[%emt 0:00:04]} Kf6 {[%emt 0:00:14]} 41. f3 {[%emt 0:00:02]} Rc1+ {[%emt 0:00:15]} 42. Kh2 {[%emt 0:00:01]} Rg8 {[%emt 0:00:03]} 43. Ree2 {[%emt 0:00:02]} Rg3 {[%emt 0:00:03]} 44. Rf2 {[%emt 0:00:10]} Ke6 {[%emt 0:00:05]} 45. Rfe2 {[%emt 0:00:03]} d5 {[%emt 0:00:05]} 46. d4 {[%emt 0:00:11]} e4 {[%emt 0:00:04]} 47. fxe4 {[%emt 0:00:03]} fxe4 {[%emt 0:00:19]} 48. Rc2 {[%emt 0:00:13]} Rd1 {[%emt 0:00:13]} 49. Red2 {[%emt 0:00:18]} Rxd2 {[%emt 0:00:01]} 50. Rxd2 {[%emt 0:00:02]} Rd3 {[%emt 0:00:02]} 51. Re2 {[%emt 0:00:10]} Rxd4 52. Kg1 {[%emt 0:00:07]} Rd1+ {[%emt 0:00:11]} 53. Kf2 {[%emt 0:00:03]} Ke5 {[%emt 0:00:03]} 54. g3 {[%emt 0:00:12]} hxg3+ {[%emt 0:00:02]} 55. Kxg3 {[%emt 0:00:02]} Rf1 {[%emt 0:00:03]} 56. h4 {[%emt 0:00:10]} d4 {[%emt 0:00:01]} 57. h5 {[%emt 0:00:16]} d3 {[%emt 0:00:01]} 58. Rd2 {[%emt 0:00:02]} Kd4 {[%emt 0:00:01]} 59. h6 {[%emt 0:00:04]} e3 {[%emt 0:00:02]} 60. h7 {[%emt 0:01:02]} Rh1 {[%emt 0:00:03]} 61. Rh2 {[%emt 0:00:03]} Rxh2 {[%emt 0:00:13]} 62. Kxh2 {[%emt 0:00:01]} d2 {[%emt 0:00:00]} 63. h8=Q+ Kd3 {[%emt 0:00:00]} 64. Qd8+ {[%emt 0:00:34]} Ke2 {[%emt 0:00:00]} 1-0

[Event "African Games-chT 2019"]
[Site "Casablanca"]
[Date "2019.08.24"]
[Round "5.20"]
[White "Mongeli, Sasha"]
[Black "Msukwa, Tupokiwe"]
[Result "1-0"]
[ECO "B52"]
[WhiteElo "1527"]
[BlackElo "1289"]
[Annotator "NA"]
[PlyCount "55"]
[EventDate "2019.08.24"]
[EventType "team-tourn"]
[EventCountry "MAR"]
[SourceTitle "playchess.com"]
[Source "ChessBase"]
[SourceQuality "1"]
[WhiteTeam "Kenya"]
[BlackTeam "MAW"]
[WhiteTeamCountry "KEN"]
[TimeControl "900+10"]

1. e4 {[%emt 0:00:00]} c5 {[%emt 0:00:00]} 2. Nf3 {[%emt 0:00:00]} d6 {[%emt 0:00:00]} 3. Bb5+ {[%emt 0:00:02]} Bd7 {[%emt 0:00:08]} 4. Bxd7+ {[%emt 0:00:05]} Qxd7 {[%emt 0:00:04]} 5. Nc3 {[%emt 0:00:09]} Nc6 {[%emt 0:00:02]} 6. d3 {[%emt 0:00:06]} e6 {[%emt 0:00:07]} 7. O-O {[%emt 0:00:25]} Nf6 {[%emt 0:00:12]} 8. Bg5 {[%emt 0:00:12]} Be7 {[%emt 0:00:02]} 9. Re1 {[%emt 0:00:11]} h6 {[%emt 0:00:58]} 10. Bd2 {[%emt 0:00:25]} a6 {[%emt 0:02:12]} 11. h3 {[%emt 0:00:19]} Qc7 {[%emt 0:00:17]} 12. Ne2 {[%emt 0:01:13]} O-O {[%emt 0:00:28]} 13. Ng3 {[%emt 0:00:32]} Rfe8 {[%emt 0:01:03]} 14. a3 {[%emt 0:00:57]} Rac8 {[%emt 0:00:41]} 15. Nh2 {[%emt 0:01:13]} d5 {[%emt 0:00:20]} 16. exd5 {[%emt 0:00:58]} exd5 {[%emt 0:00:33]} 17. Nh5 {[%emt 0:01:01]} d4 {[%emt 0:01:27]} 18. Nxf6+ {[%emt 0:00:30]} Bxf6 {[%emt 0:00:10]} 19. Rxe8+ {[%emt 0:00:34]} Rxe8 {[%emt 0:00:16]} 20. Ng4 {[%emt 0:00:06]} Bh4 {[%emt 0:03:17]} 21. Qf3 {[%emt 0:01:30]} Ne5 {[%emt 0:01:23]} 22. Nxe5 {[%emt 0:01:41]} Qxe5 {[%emt 0:00:05]} 23. Re1 {[%emt 0:00:35]} Qb8 {[%emt 0:01:07]} 24. Re4 {[%emt 0:01:05]} Rxe4 {[%emt 0:00:42]} 25. Qxe4 {[%emt 0:00:02]} Bf6 {[%emt 0:00:39]} 26. Qf5 {[%emt 0:00:39]} Qd8 {[%emt 0:01:00]} 27. Qxc5 {[%emt 0:00:36]} Qe8 {[%emt 0:01:17]} 28. Kf1 1-0

[Event "African Games-chT 2019"]
[Site "Casablanca"]
[Date "2019.08.24"]
[Round "5.21"]
[White "Adu, Oladapo"]
[Black "Beukes, Dante M"]
[Result "1-0"]
[ECO "B30"]
[WhiteElo "2273"]
[BlackElo "2130"]
[Annotator "NA"]
[PlyCount "71"]
[EventDate "2019.08.24"]
[EventType "team-tourn"]
[EventCountry "MAR"]
[SourceTitle "playchess.com"]
[Source "ChessBase"]
[SourceQuality "1"]
[WhiteTeam "Nigeria"]
[BlackTeam "Namibia"]
[WhiteTeamCountry "NGR"]
[BlackTeamCountry "NAM"]
[TimeControl "900+10"]

1. e4 {[%emt 0:00:00]} c5 {[%emt 0:00:00]} 2. Nf3 {[%emt 0:00:00]} Nc6 {[%emt 0:00:06]} 3. d3 {[%emt 0:00:05]} g6 {[%emt 0:00:02]} 4. g3 {[%emt 0:00:03]} Bg7 5. Bg2 {[%emt 0:00:03]} e6 {[%emt 0:00:04]} 6. O-O {[%emt 0:00:03]} Nge7 {[%emt 0:00:01]} 7. Re1 {[%emt 0:00:03]} O-O {[%emt 0:00:05]} 8. c3 {[%emt 0:00:16]} d5 {[%emt 0:00:12]} 9. e5 {[%emt 0:00:06]} d4 {[%emt 0:00:11]} 10. c4 {[%emt 0:00:15]} Qc7 {[%emt 0:01:02]} 11. Qe2 {[%emt 0:00:02]} b6 {[%emt 0:00:20]} 12. Bf4 {[%emt 0:00:18]} Bb7 {[%emt 0:00:03]} 13. h4 {[%emt 0:00:06]} Nb4 {[%emt 0:00:52]} 14. a3 {[%emt 0:00:25]} Nbc6 {[%emt 0:00:02]} 15. Nbd2 {[%emt 0:00:04]} Kh8 {[%emt 0:02:03]} 16. Nf1 {[%emt 0:00:02]} Qd7 {[%emt 0:00:35]} 17. N1h2 {[%emt 0:00:10]} Rae8 {[%emt 0:00:14]} 18. Ng4 {[%emt 0:00:03]} Ng8 {[%emt 0:00:04]} 19. Qd2 {[%emt 0:00:07]} f6 {[%emt 0:01:37]} 20. b4 {[%emt 0:00:19]} fxe5 {[%emt 0:02:36]} 21. Ngxe5 {[%emt 0:00:13]} Nxe5 {[%emt 0:00:03]} 22. Nxe5 {[%emt 0:00:02]} Qc8 {[%emt 0:00:04]} 23. Bxb7 {[%emt 0:01:34]} Qxb7 {[%emt 0:00:01]} 24. bxc5 {[%emt 0:00:02]} bxc5 {[%emt 0:00:03]} 25. Rab1 {[%emt 0:00:01]} Qc8 {[%emt 0:00:50]} 26. Rb5 {[%emt 0:00:17]} Ne7 {[%emt 0:00:35]} 27. Reb1 {[%emt 0:00:23]} Nc6 {[%emt 0:00:23]} 28. Qe2 {[%emt 0:01:34]} Rxf4 {[%emt 0:01:25]} 29. gxf4 {[%emt 0:00:03]} Nxe5 {[%emt 0:00:19]} 30. fxe5 {[%emt 0:00:01]} Qd8 {[%emt 0:00:12]} 31. Qe4 {[%emt 0:00:01]} Rf8 {[%emt 0:00:15]} 32. Rb7 {[%emt 0:00:19]} Bh6 {[%emt 0:00:14]} 33. Kg2 {[%emt 0:00:09]} Kg8 {[%emt 0:01:10]} 34. Rxa7 {[%emt 0:01:08]} Bf4 {[%emt 0:00:14]} 35. Qb7 {[%emt 0:00:30]} Qxh4 {[%emt 0:00:20]} 36. Qg7# {[%emt 0:00:02]} 1-0

[Event "African Games-chT 2019"]
[Site "Casablanca"]
[Date "2019.08.24"]
[Round "5.22"]
[White "Eichab, Charles"]
[Black "Osunfuyi, Abimbola"]
[Result "0-1"]
[ECO "A01"]
[WhiteElo "2016"]
[BlackElo "2235"]
[Annotator "NA"]
[PlyCount "41"]
[EventDate "2019.08.24"]
[EventType "team-tourn"]
[EventCountry "MAR"]
[SourceTitle "playchess.com"]
[Source "ChessBase"]
[SourceQuality "1"]
[WhiteTeam "Namibia"]
[BlackTeam "Nigeria"]
[WhiteTeamCountry "NAM"]
[BlackTeamCountry "NGR"]
[TimeControl "900+10"]

1. b3 {[%emt 0:00:00]} c5 {[%emt 0:00:55]} 2. Bb2 {[%emt 0:00:04]} Nc6 {[%emt 0:00:01]} 3. e3 {[%emt 0:00:01]} a6 {[%emt 0:00:12]} 4. f4 {[%emt 0:00:27]} d5 {[%emt 0:00:11]} 5. Nf3 {[%emt 0:00:02]} Nf6 {[%emt 0:01:00]} 6. Be2 {[%emt 0:00:09]} Bf5 {[%emt 0:00:44]} 7. O-O {[%emt 0:00:35]} h6 {[%emt 0:00:22]} 8. Ne5 {[%emt 0:00:28]} e6 {[%emt 0:00:18]} 9. Nxc6 {[%emt 0:00:37]} bxc6 {[%emt 0:00:02]} 10. d3 {[%emt 0:00:05]} Be7 {[%emt 0:03:33]} 11. Nd2 {[%emt 0:00:08]} O-O {[%emt 0:01:04]} 12. Bf3 {[%emt 0:00:14]} Bg6 {[%emt 0:00:34]} 13. Qe2 {[%emt 0:00:52]} a5 {[%emt 0:00:33]} 14. a4 {[%emt 0:00:13]} Nd7 {[%emt 0:00:28]} 15. e4 {[%emt 0:00:18]} Rb8 {[%emt 0:00:33]} 16. f5 {[%emt 0:00:51]} exf5 {[%emt 0:00:44]} 17. exd5 {[%emt 0:00:01]} cxd5 {[%emt 0:00:11]} 18. Bxd5 {[%emt 0:00:03]} Re8 {[%emt 0:01:12]} 19. Qf2 {[%emt 0:01:29]} Bh4 {[%emt 0:00:37]} 20. g3 {[%emt 0:01:28]} Bg5 {[%emt 0:00:07]} 21. Rae1 {[%emt 0:01:01]} 0-1

[Event "African Games-chT 2019"]
[Site "Casablanca"]
[Date "2019.08.24"]
[Round "5.23"]
[White "Ogbiyoyo, Perpetual Eloho"]
[Black "Tjaronda, Nicola"]
[Result "1-0"]
[ECO "B23"]
[WhiteElo "1831"]
[BlackElo "1545"]
[Annotator "NA"]
[PlyCount "39"]
[EventDate "2019.08.24"]
[EventType "team-tourn"]
[EventCountry "MAR"]
[SourceTitle "playchess.com"]
[Source "ChessBase"]
[SourceQuality "1"]
[WhiteTeam "Nigeria"]
[BlackTeam "Namibia"]
[WhiteTeamCountry "NGR"]
[BlackTeamCountry "NAM"]
[TimeControl "900+10"]

1. e4 {[%emt 0:00:00]} c5 {[%emt 0:00:00]} 2. Nc3 {[%emt 0:00:00]} g6 {[%emt 0:00:00]} 3. f4 {[%emt 0:00:00]} Bg7 {[%emt 0:00:00]} 4. Nf3 {[%emt 0:00:01]} d6 {[%emt 0:00:02]} 5. Bb5+ {[%emt 0:00:03]} Bd7 {[%emt 0:00:03]} 6. Bxd7+ {[%emt 0:00:03]} Qxd7 {[%emt 0:00:03]} 7. d3 {[%emt 0:00:04]} Nc6 {[%emt 0:00:02]} 8. O-O {[%emt 0:00:03]} Nf6 {[%emt 0:00:10]} 9. Qe1 {[%emt 0:00:39]} O-O {[%emt 0:00:33]} 10. Ne2 {[%emt 0:00:32]} Rac8 {[%emt 0:00:21]} 11. c3 {[%emt 0:00:06]} Ne8 {[%emt 0:01:34]} 12. f5 {[%emt 0:00:22]} Nc7 {[%emt 0:00:16]} 13. Qh4 {[%emt 0:00:25]} Ne5 {[%emt 0:01:39]} 14. Bh6 {[%emt 0:01:58]} Nxf3+ {[%emt 0:04:44]} 15. Rxf3 {[%emt 0:00:04]} Ne8 {[%emt 0:01:19]} 16. Raf1 {[%emt 0:00:12]} Nf6 {[%emt 0:01:16]} 17. Rh3 {[%emt 0:00:53]} e5 {[%emt 0:01:11]} 18. fxe6 {[%emt 0:01:21]} Qxe6 {[%emt 0:00:32]} 19. Bxg7 {[%emt 0:00:59]} Kxg7 {[%emt 0:00:13]} 20. Rxf6 {[%emt 0:00:29]} 1-0